bitfinex/quotes_SOLUSD_20241005
["timestamp","ask_amount","ask_price","bid_price","bid_amount"]
[1728125834961,20.0,144.17,144.16,56.9363]
[1728125835245,26.2017872,144.17,144.16,56.9363]
[1728125836747,20.0,144.17,144.16,56.9363]
[1728125838743,26.20377878,144.17,144.16,56.9363]
[1728125840477,32.40815098,144.17,144.16,56.9363]
[1728125842539,26.20377878,144.17,144.16,56.9363]
[1728125843148,20.0,144.17,144.16,56.9363]
[1728125843644,26.20774868,144.17,144.16,56.9363]
[1728125845557,20.0,144.17,144.16,56.9363]
[1728125845757,26.20857855,144.17,144.16,56.9363]
[1728125848557,26.20857855,144.17,144.16,50.0]
[1728125848943,26.20857855,144.17,144.14,74.2816]
[1728125849152,20.0,144.15,144.14,24.2816]
[1728125849451,26.20857855,144.15,144.14,24.2816]
[1728125849637,26.20857855,144.15,144.14,17.3441]
[1728125849845,26.20857855,144.15,144.13,56.9381]
[1728125850150,26.20857855,144.14,144.13,6.9381]
[1728125851237,26.20857855,144.14,144.12,56.9386]
[1728125851439,6.20857855,144.13,144.12,56.9386]
[1728125851936,6.20857855,144.13,144.11,17.3472]
[1728125851937,20.0,144.12,144.11,17.3472]
[1728125852138,26.20413781,144.12,144.11,17.3472]
[1728125852759,26.20192881,144.12,144.11,17.3472]
[1728125853127,26.20192881,144.12,144.11,74.2863]
[1728125853735,26.20192881,144.12,144.11,17.3472]
[1728125854863,26.20192881,144.12,144.08,74.2916]
[1728125855037,20.0,144.12,144.09,6.9399]
[1728125855354,20.0,144.12,144.09,50.0]
[1728125857447,20.0,144.12,144.07,0.8602899]
[1728125857655,20.0,144.12,144.09,50.0]
[1728125859561,20.0,144.12,144.07,0.8602899]
[1728125859740,20.0,144.12,144.09,50.0]
[1728125864663,43.776884,144.1,144.07,50.8602899]
[1728125868769,1.17442069,144.09,144.07,0.8602899]
[1728125869071,43.776884,144.08,144.07,0.8602899]
[1728125871276,50.717384,144.08,144.07,0.8602899]
[1728125871476,43.776884,144.08,144.07,0.8602899]
[1728125874049,44.95130469,144.08,144.07,0.8602899]
[1728125875051,51.89180469,144.08,144.07,0.8602899]
[1728125875253,52.14278469,144.08,144.07,0.8602899]
[1728125875571,44.027864,144.08,144.07,0.8602899]
[1728125884476,43.776884,144.08,144.07,0.8602899]
[1728125886664,20.0,144.08,144.07,0.8602899]
[1728125887979,43.776884,144.08,144.07,0.8602899]
[1728125888273,20.0,144.08,144.07,0.8602899]
[1728125889402,15.5575,144.13,144.07,0.8602899]
[1728125889403,22.4958,144.13,144.08,50.0]
[1728125890583,20.0,144.12,144.09,50.0]
[1728125890979,22.4958,144.13,144.09,50.0]
[1728125891574,6.9388,144.12,144.07,50.8602899]
[1728125892091,23.776884,144.11,144.07,50.8602899]
[1728125892284,20.0,144.1,144.07,50.8602899]
[1728125892657,20.0,144.1,144.07,0.8602899]
[1728125892960,20.0,144.1,144.08,50.0]
[1728125893159,20.0,144.12,144.08,50.0]
[1728125893359,20.0,144.13,144.11,50.0]
[1728125893768,20.0,144.13,144.12,50.0]
[1728125893970,26.19257094,144.13,144.12,50.0]
[1728125895080,6.19257094,144.13,144.12,50.0]
[1728125895588,6.19257094,144.13,144.12,51.38753639]
[1728125895889,6.949,144.14,144.12,51.38753639]
[1728125896095,6.949,144.14,144.13,50.0]
[1728125896390,13.14588163,144.14,144.13,50.0]
[1728125896571,13.14588163,144.14,144.13,51.38748097]
[1728125896768,13.14588163,144.14,144.13,50.0]
[1728125897395,33.14588163,144.14,144.13,50.0]
[1728125898270,26.949,144.14,144.13,56.9381]
[1728125898592,6.949,144.14,144.13,56.9381]
[1728125899169,6.949,144.14,144.13,6.9381]
[1728125899386,6.949,144.2,144.17,50.0]
[1728125899586,6.19587843,144.19,144.17,50.0]
[1728125899793,6.19587843,144.18,144.17,50.0]
[1728125900677,43.776884,144.2,144.18,3.80412157]
[1728125901899,43.776884,144.2,144.18,33.80412157]
[1728125907581,50.711784,144.2,144.18,33.80412157]
[1728125908794,50.711784,144.2,144.18,3.80412157]
[1728125909299,24.95130469,144.19,144.18,3.80412157]
[1728125909999,44.95130469,144.19,144.18,3.80412157]
[1728125910603,43.776884,144.19,144.18,3.80412157]
[1728125911286,43.776884,144.19,144.18,33.80412157]
[1728125919110,50.712084,144.19,144.18,33.80412157]
[1728125920508,50.963064,144.19,144.18,33.80412157]
[1728125928293,50.963064,144.19,144.18,3.80412157]
[1728125935121,50.712084,144.19,144.18,3.80412157]
[1728125935328,43.776884,144.19,144.18,3.80412157]
[1728125936514,50.963064,144.19,144.18,3.80412157]
[1728125959247,50.712084,144.19,144.18,3.80412157]
[1728125962441,43.776884,144.19,144.18,3.80412157]
[1728125962751,50.712084,144.19,144.18,3.80412157]
[1728125967352,50.963064,144.19,144.18,3.80412157]
[1728125981441,57.10915428,144.19,144.18,3.80412157]
[1728125982457,50.963064,144.19,144.18,3.80412157]
[1728125982665,57.11034097,144.19,144.18,3.80412157]
[1728125992366,57.11254245,144.19,144.18,3.80412157]
[1728125998674,57.11382777,144.19,144.18,3.80412157]
[1728126003111,57.11382777,144.19,144.18,0.28052157]
[1728126004218,57.11465432,144.19,144.18,0.28052157]
[1728126012213,58.28907501,144.19,144.18,0.28052157]
[1728126016398,52.13748469,144.19,144.18,0.28052157]
[1728126016597,58.27945992,144.19,144.18,0.28052157]
[1728126019427,33.07717523,144.19,144.18,0.28052157]
[1728126020606,33.20266523,144.19,144.18,0.28052157]
[1728126020813,57.10503923,144.19,144.18,0.28052157]
[1728126024105,50.963064,144.19,144.18,0.28052157]
[1728126024707,57.10456893,144.19,144.18,0.28052157]
[1728126025810,57.10478647,144.19,144.18,0.28052157]
[1728126026010,13.07692247,144.19,144.18,0.28052157]
[1728126027744,13.20241247,144.19,144.18,30.28052157]
[1728126027905,36.97929647,144.19,144.18,30.28052157]
[1728126028231,37.10478647,144.19,144.18,30.28052157]
[1728126028433,57.10478647,144.19,144.18,30.28052157]
[1728126028909,50.963064,144.19,144.18,0.28052157]
[1728126029230,58.27883099,144.19,144.18,0.28052157]
[1728126029436,6.9376,144.15,144.13,30.0]
[1728126029614,6.1413463,144.14,144.13,30.0]
[1728126030028,6.1413463,144.14,144.13,50.0]
[1728126031633,6.1408851,144.14,144.13,50.0]
[1728126032036,6.1408851,144.14,144.12,50.0]
[1728126032237,6.1408851,144.13,144.12,50.0]
[1728126036623,6.14094291,144.13,144.12,50.0]
[1728126039243,6.9376,144.15,144.12,50.0]
[1728126039739,6.9376,144.15,144.13,50.0]
[1728126041736,6.9376,144.14,144.13,50.0]
[1728126041941,23.776884,144.15,144.12,50.0]
[1728126042142,1.17442069,144.14,144.12,50.0]
[1728126042349,20.0,144.14,144.12,50.0]
[1728126042850,1.17442069,144.15,144.11,50.0]
[1728126043220,6.9382,144.13,144.11,50.0]
[1728126043426,1.17442069,144.15,144.09,50.0]
[1728126043655,6.9392,144.11,144.09,50.0]
[1728126044449,50.717384,144.08,144.07,0.8602899]
[1728126050360,50.968364,144.08,144.07,0.8602899]
[1728126056447,44.027864,144.08,143.99,84.00857666]
[1728126056650,20.0,144.03,144.02,50.0]
[1728126057942,26.9429,144.03,144.01,50.0]
[1728126059062,26.9429,144.03,144.02,50.0]
[1728126060150,20.0,144.03,144.02,50.0]
[1728126062279,20.0,144.03,144.01,50.0]
[1728126064450,20.0,144.03,144.02,1.38858406]
[1728126065450,20.0,144.03,144.02,51.38858406]
[1728126066264,20.0,144.03,144.02,50.0]
[1728126072056,26.9429,144.03,144.02,50.0]
[1728126072751,26.9429,144.03,143.99,22.1809]
[1728126072950,26.9429,144.03,144.01,50.0]
[1728126075980,26.9444,144.0,143.99,50.0]
[1728126076181,20.0,144.01,143.98,50.0]
[1728126076354,26.944,144.01,143.98,50.0]
[1728126077050,26.944,144.01,143.99,50.0]
[1728126078665,20.0,143.99,143.97,50.0]
[1728126078974,26.945,143.99,143.97,50.0]
[1728126080080,6.9454,143.98,143.97,50.0]
[1728126080580,6.9454,143.98,143.96,30.0]
[1728126080581,6.9454,143.98,143.96,50.0]
[1728126080874,20.0,143.97,143.96,50.0]
[1728126081484,6.9469,143.95,143.93,50.0]
[1728126081779,26.9464,143.96,143.95,50.0]
[1728126082158,26.9464,143.96,143.93,50.0]
[1728126082577,26.9464,143.96,143.94,50.0]
[1728126083672,20.0,143.94,143.93,50.0]
[1728126084381,20.0,143.96,143.95,50.0]
[1728126084763,20.0,143.98,143.95,50.0]
[1728126085855,6.9454,143.98,143.96,50.0]
[1728126086367,20.0,143.97,143.96,50.0]
[1728126086775,20.0,143.97,143.93,13.0613]
[1728126086972,20.0,143.97,143.96,50.0]
[1728126087682,43.776884,144.0,143.96,50.0]
[1728126087982,20.0,144.0,143.97,51.38895067]
[1728126088382,20.0,144.01,143.97,51.38895067]
[1728126088582,20.0,144.01,143.97,50.0]
[1728126088766,20.0,143.99,143.97,50.0]
[1728126090160,20.0,143.99,143.98,50.0]
[1728126092301,6.9435,144.02,144.0,50.0]
[1728126094307,20.0,144.01,144.0,50.0]
[1728126096989,26.9439,144.01,144.0,50.0]
[1728126097388,26.9439,144.01,143.98,50.0]
[1728126097685,6.9445,144.0,143.98,50.0]
[1728126097890,6.9449,143.99,143.98,50.0]
[1728126098276,26.9449,143.99,143.98,50.0]
[1728126098493,26.9449,143.99,143.96,50.0]
[1728126098703,26.9449,143.99,143.94,19.75850245]
[1728126098704,26.9449,143.99,143.98,50.0]
[1728126099285,20.0,143.99,143.98,50.0]
[1728126101890,20.0,144.01,144.0,50.0]
[1728126103012,20.0,144.01,143.99,50.0]
[1728126104107,20.0,144.01,144.0,50.0]
[1728126106321,6.9436,144.02,144.0,50.0]
[1728126107219,6.949,144.04,143.97,19.75740245]
[1728126107220,6.949,144.03,144.02,50.0]
[1728126108306,6.949,144.03,144.02,56.9434]
[1728126108497,6.949,144.03,144.02,86.27175732]
[1728126108811,6.949,144.03,144.02,92.71504732]
[1728126109191,6.949,144.09,144.08,50.0]
[1728126109506,6.94,144.1,144.08,50.0]
[1728126110006,6.9401,144.09,144.08,50.0]
[1728126110206,13.4196294,144.09,144.08,50.0]
[1728126110500,6.9401,144.09,144.08,50.0]
[1728126114917,6.9396,144.1,144.08,50.0]
[1728126115218,26.9396,144.1,144.09,1.38787112]
[1728126115384,26.9396,144.1,144.08,50.0]
[1728126115706,6.9396,144.1,144.08,50.0]
[1728126116421,6.9396,144.1,144.09,1.3878853]
[1728126116915,6.9396,144.1,144.09,51.3878853]
[1728126117099,6.9396,144.1,144.09,50.0]
[1728126118715,6.9391,144.11,144.09,50.0]
[1728126118923,26.9391,144.11,144.1,1.38776118]
[1728126119223,6.9391,144.11,144.1,50.0]
[1728126119517,26.9391,144.11,144.1,50.0]
[1728126122493,6.9391,144.11,144.1,50.0]
[1728126122995,20.0,144.13,144.1,50.0]
[1728126123194,6.9382,144.13,144.11,1.38761814]
[1728126123607,6.9382,144.13,144.11,51.38761814]
[1728126123807,6.9382,144.13,144.11,50.0]
[1728126124093,6.9382,144.13,144.12,1.38760941]
[1728126124412,6.9386,144.12,144.11,80.0]
[1728126125218,6.9382,144.13,144.11,80.0]
[1728126125538,26.9372,144.15,144.14,50.0]
[1728126125692,13.40010368,144.15,144.14,50.0]
[1728126125896,6.9372,144.15,144.14,50.0]
[1728126128825,6.9363,144.17,144.16,50.0]
[1728126129113,13.39711019,144.17,144.16,50.0]
[1728126130620,6.9371,144.16,144.14,50.0]
[1728126131007,6.9371,144.16,144.15,50.0]
[1728126131998,20.0,144.18,144.14,50.0]
[1728126132219,6.9373,144.15,144.14,50.0]
[1728126133005,6.937,144.16,144.14,50.0]
[1728126134106,6.9372,144.15,144.14,50.0]
[1728126135725,1.17442069,144.24,144.14,69.39480245]
[1728126135904,17.3347,144.22,144.17,50.0]
[1728126136105,16.60270613,144.21,144.17,50.0]
[1728126136520,17.3347,144.22,144.17,50.0]
[1728126136701,16.60249643,144.2,144.17,50.0]
[1728126136911,6.38557555,144.19,144.17,50.0]
[1728126137114,13.32127555,144.18,144.17,50.0]
[1728126138130,6.38557555,144.18,144.17,50.0]
[1728126138826,6.9353,144.19,144.17,50.0]
[1728126139024,6.38689723,144.18,144.17,50.0]
[1728126139642,13.32259723,144.18,144.17,50.0]
[1728126147121,6.9357,144.18,144.17,50.0]
[1728126147418,13.25737119,144.18,144.17,50.0]
[1728126148641,23.776884,144.17,144.15,50.0]
[1728126148814,13.25837119,144.16,144.15,50.0]
[1728126149232,13.25837119,144.16,144.14,50.0]
[1728126149428,6.9367,144.16,144.14,50.0]
[1728126149623,6.33026747,144.15,144.14,50.0]
[1728126149918,6.33026747,144.15,144.14,80.0]
[1728126150120,6.33026747,144.15,144.14,50.0]
[1728126154933,6.33026747,144.15,144.14,56.9376]
[1728126155248,6.33026747,144.15,144.14,99.74930245]
[1728126157657,6.33026747,144.15,144.14,86.9376]
[1728126157863,6.33026747,144.15,144.14,80.0]
[1728126159763,6.9363,144.17,144.16,50.0]
[1728126159960,13.18651018,144.17,144.16,50.0]
[1728126160951,13.18651018,144.17,144.15,50.0]
[1728126161151,6.25021018,144.16,144.15,50.0]
[1728126162744,13.18691018,144.16,144.15,50.0]
[1728126163146,6.9367,144.16,144.15,50.0]
[1728126163362,13.19000351,144.16,144.15,50.0]
[1728126165757,6.25330351,144.16,144.15,50.0]
[1728126166441,6.9363,144.17,144.15,50.0]
[1728126166640,6.25810636,144.16,144.15,50.0]
[1728126173175,6.9363,144.17,144.15,50.0]
[1728126173474,6.26637974,144.16,144.15,50.0]
[1728126174856,30.04326374,144.16,144.13,50.0]
[1728126175055,13.20367974,144.15,144.13,50.0]
[1728126175257,6.26637974,144.14,144.13,50.0]
[1728126175553,6.26637974,144.14,144.13,80.0]
[1728126175954,6.26637974,144.14,144.13,50.0]
[1728126176550,6.9373,144.15,144.13,50.0]
[1728126176755,6.16034286,144.14,144.13,50.0]
[1728126179961,6.9373,144.15,144.13,50.0]
[1728126180158,6.15996598,144.14,144.13,50.0]
[1728126188799,6.15996598,144.14,144.11,37.09770245]
[1728126189085,6.9373,144.15,144.13,50.0]
[1728126189263,6.16004222,144.14,144.13,50.0]
[1728126199105,6.9373,144.15,144.13,50.0]
[1728126199285,6.1613015,144.14,144.13,50.0]
[1728126202009,6.1613015,144.14,144.13,71.13710652]
[1728126202304,6.1613015,144.14,144.13,71.26259652]
[1728126202685,6.1613015,144.14,144.13,115.90648245]
[1728126203604,6.9339,144.22,144.21,50.0]
[1728126203789,33.09774163,144.22,144.21,50.0]
[1728126203988,26.9339,144.22,144.21,50.0]
[1728126204803,20.0,144.22,144.21,50.0]
[1728126205008,23.2448,144.23,144.21,50.0]
[1728126207807,24.78883882,144.28,144.21,50.0]
[1728126207985,6.9325,144.25,144.23,50.0]
[1728126208307,6.932,144.26,144.23,50.0]
[1728126209405,6.932,144.26,144.24,51.38642473]
[1728126209590,6.932,144.26,144.24,50.0]
[1728126212015,6.9338,144.22,144.2,50.0]
[1728126212392,6.9338,144.22,144.21,50.0]
[1728126212896,6.9334,144.23,144.21,50.0]
[1728126218799,15.5161,144.27,144.23,50.0]
[1728126219004,6.932,144.26,144.24,51.38634583]
[1728126219302,6.9315,144.27,144.24,51.38634583]
[1728126219824,6.9321,144.26,144.24,50.0]
[1728126224307,6.9321,144.26,144.25,50.0]
[1728126227136,6.9321,144.26,144.23,50.0]
[1728126227544,6.9321,144.26,144.24,50.0]
[1728126230153,23.776884,144.24,144.2,50.0]
[1728126230324,6.9343,144.21,144.2,50.0]
[1728126230630,6.9343,144.21,144.2,80.0]
[1728126230957,6.9343,144.21,144.2,30.0]
[1728126231133,6.9343,144.21,144.19,50.0]
[1728126231853,6.9343,144.21,144.2,50.0]
[1728126234755,6.9343,144.21,144.16,13.4463]
[1728126234756,23.776884,144.22,144.18,50.0]
[1728126235055,6.9348,144.2,144.19,50.0]
[1728126236329,6.9344,144.21,144.19,50.0]
[1728126237335,6.9344,144.21,144.2,50.0]
[1728126242538,6.9344,144.21,144.19,50.0]
[1728126243764,6.9344,144.21,144.2,50.0]
[1728126244569,6.9339,144.22,144.2,50.0]
[1728126244864,6.4339,144.22,144.2,50.0]
[1728126245746,6.4339,144.22,144.21,50.0]
[1728126247267,20.0,144.23,144.19,50.0]
[1728126247455,6.9343,144.21,144.19,50.0]
[1728126251070,6.9343,144.21,144.2,50.0]
[1728126255062,6.9338,144.22,144.2,50.0]
[1728126255566,6.9338,144.22,144.21,50.0]
[1728126257075,6.9345,144.21,144.19,50.0]
[1728126259367,6.9348,144.2,144.19,50.0]
[1728126259666,23.776884,144.22,144.17,50.0]
[1728126259872,23.776884,144.2,144.17,50.0]
[1728126260746,23.776884,144.2,144.14,17.3435]
[1728126260948,23.776884,144.2,144.17,50.0]
[1728126261254,6.9357,144.18,144.17,50.0]
[1728126265788,30.712584,144.18,144.17,50.0]
[1728126266292,6.9357,144.18,144.17,50.0]
[1728126273594,20.0,144.22,144.2,50.0]
[1728126273771,22.6123,144.23,144.22,50.0]
[1728126273975,15.9331,144.28,144.22,50.0]
[1728126274185,15.9331,144.28,144.24,50.0]
[1728126274695,15.9331,144.28,144.25,50.0]
[1728126275074,6.9318,144.27,144.25,50.0]
[1728126277778,6.9318,144.27,144.22,12.81170245]
[1728126277986,6.9318,144.27,144.25,50.0]
[1728126280088,23.776884,144.27,144.25,50.0]
[1728126280287,6.9319,144.26,144.25,50.0]
[1728126280680,6.9314,144.27,144.25,50.0]
[1728126284600,6.9314,144.27,144.26,51.38622844]
[1728126284979,6.9314,144.27,144.26,50.0]
[1728126285587,6.9304,144.3,144.26,50.0]
[1728126285805,43.776884,144.29,144.26,50.0]
[1728126286713,6.9313,144.28,144.26,50.0]
[1728126287289,43.776884,144.29,144.26,50.0]
[1728126287616,6.9314,144.27,144.26,50.0]
[1728126293010,43.776884,144.29,144.26,50.0]
[1728126293178,6.9314,144.27,144.26,50.0]
[1728126302511,6.9324,144.25,144.24,50.0]
[1728126302831,6.9343,144.21,144.2,50.0]
[1728126303022,6.9348,144.2,144.19,62.69079666]
[1728126303604,6.9348,144.2,144.18,50.0]
[1728126304913,6.9348,144.2,144.19,50.0]
[1728126307128,41.109884,144.24,144.21,50.0]
[1728126307129,6.9338,144.22,144.21,50.0]
[1728126307309,23.776884,144.24,144.21,50.0]
[1728126307310,6.9334,144.23,144.21,50.0]
[1728126307706,6.9329,144.24,144.23,50.0]
[1728126308025,6.9319,144.26,144.23,50.0]
[1728126308225,6.9314,144.27,144.25,50.0]
[1728126308726,16.244,144.31,144.25,50.0]
[1728126309029,6.9319,144.26,144.25,50.0]
[1728126309327,6.9328,144.24,144.23,50.0]
[1728126312309,6.9324,144.25,144.23,50.0]
[1728126312522,6.9324,144.25,144.24,50.0]
[1728126313512,6.9319,144.26,144.25,50.0]
[1728126319042,6.9319,144.26,144.24,50.0]
[1728126324352,6.9319,144.26,144.25,50.0]
[1728126328744,6.9324,144.25,144.24,50.0]
[1728126330325,6.9333,144.23,144.22,50.0]
[1728126332835,1.17442069,144.25,144.19,50.0]
[1728126333037,6.9347,144.21,144.19,50.0]
[1728126333528,6.9348,144.2,144.19,50.0]
[1728126335214,34.04379,144.26,144.19,50.0]
[1728126335542,6.9343,144.21,144.19,50.0]
[1728126336332,6.9343,144.21,144.2,50.0]
[1728126338030,24.027864,144.24,144.18,50.0]
[1728126338225,6.9351,144.2,144.18,50.0]
[1728126339833,6.9352,144.19,144.18,50.0]
[1728126340729,6.9352,144.19,144.17,50.0]
[1728126342028,6.9357,144.18,144.17,50.0]
[1728126342329,6.9353,144.19,144.17,50.0]
[1728126342945,6.9353,144.19,144.18,50.0]
[1728126349450,6.9353,144.19,144.18,80.0]
[1728126352045,23.776884,144.2,144.19,23.0647]
[1728126354240,30.711684,144.2,144.19,23.0647]
[1728126356954,30.711684,144.2,144.18,50.0]
[1728126358279,23.776884,144.21,144.18,50.0]
[1728126358463,6.9352,144.19,144.18,50.0]
[1728126360765,6.9349,144.2,144.18,50.0]
[1728126362949,23.776884,144.21,144.18,50.0]
[1728126363152,6.9352,144.19,144.18,50.0]
[1728126370572,6.9358,144.18,144.16,50.0]
[1728126371372,23.776884,144.21,144.14,50.0]
[1728126371665,6.9372,144.15,144.14,50.0]
[1728126371854,6.9372,144.15,144.13,50.0]
[1728126372473,1.29991069,144.2,144.17,50.0]
[1728126372474,20.0,144.2,144.17,50.0]
[1728126372657,6.9353,144.19,144.17,50.0]
[1728126373050,6.9353,144.19,144.18,50.0]
[1728126373358,15.9565,144.22,144.2,50.0]
[1728126373553,6.9339,144.22,144.2,50.0]
[1728126374058,6.9351,144.2,144.17,50.0]
[1728126374260,26.56624599,144.25,144.17,50.0]
[1728126374472,6.9354,144.19,144.17,50.0]
[1728126376648,6.9357,144.18,144.15,50.0]
[1728126377049,6.9363,144.17,144.15,50.0]
[1728126378363,6.9363,144.17,144.14,50.0]
[1728126380479,6.9363,144.17,144.15,50.0]
[1728126381353,1.17442069,144.19,144.15,50.0]
[1728126381555,1.17442069,144.19,144.12,12.81170245]
[1728126381556,6.9367,144.16,144.14,50.0]
[1728126383757,6.9367,144.16,144.12,12.81170245]
[1728126383959,6.9367,144.16,144.14,50.0]
[1728126385365,6.9372,144.15,144.14,50.0]
[1728126386078,6.9372,144.15,144.13,50.0]
[1728126386757,6.9376,144.14,144.13,50.0]
[1728126389386,6.9376,144.14,144.12,50.0]
[1728126392487,6.9376,144.14,144.13,50.0]
[1728126393683,6.9376,144.14,144.12,50.0]
[1728126394572,6.9381,144.13,144.12,50.0]
[1728126394772,6.9381,144.13,144.11,50.0]
[1728126395809,6.9381,144.13,144.12,50.0]
[1728126399698,6.9391,144.11,144.1,50.0]
[1728126400075,6.9391,144.11,144.09,50.0]
[1728126401200,6.9391,144.11,144.1,50.0]
[1728126411215,6.9387,144.12,144.1,50.0]
[1728126411911,6.9387,144.12,144.11,50.0]
[1728126412214,26.9387,144.12,144.11,50.0]
[1728126415197,17.3412,144.17,144.11,50.0]
[1728126415509,6.9376,144.14,144.13,50.0]
[1728126416114,6.9376,144.14,144.09,14.61832323]
[1728126416294,6.9372,144.15,144.13,50.0]
[1728126416489,6.9372,144.15,144.14,1.38738604]
[1728126417296,6.9372,144.15,144.14,51.38738604]
[1728126417610,6.9372,144.15,144.14,50.0]
[1728126419002,26.9363,144.17,144.16,50.0]
[1728126419711,6.9363,144.17,144.16,50.0]
[1728126419917,6.9358,144.18,144.16,50.0]
[1728126420094,6.9358,144.18,144.17,1.38707476]
[1728126420607,6.9358,144.18,144.17,50.0]
[1728126421824,6.9343,144.21,144.2,50.0]
[1728126423912,15.0588,144.22,144.2,50.0]
[1728126424229,6.9343,144.21,144.2,50.0]
[1728126425327,23.776884,144.21,144.16,50.0]
[1728126425526,6.9362,144.17,144.16,50.0]
[1728126425841,24.95130469,144.21,144.14,50.0]
[1728126426124,6.9368,144.16,144.15,50.0]
[1728126431221,6.9357,144.18,144.17,50.0]
[1728126433524,24.95130469,144.21,144.17,50.0]
[1728126433846,6.9357,144.18,144.17,50.0]
[1728126434637,24.95130469,144.21,144.17,50.0]
[1728126434848,6.9357,144.18,144.17,50.0]
[1728126436743,23.776884,144.21,144.17,50.0]
[1728126436952,6.9357,144.18,144.17,50.0]
[1728126437856,23.776884,144.21,144.17,50.0]
[1728126438032,6.9357,144.18,144.17,50.0]
[1728126447440,23.776884,144.21,144.17,50.0]
[1728126447740,6.9357,144.18,144.17,50.0]
[1728126448562,23.776884,144.21,144.17,50.0]
[1728126448748,6.9357,144.18,144.17,50.0]
[1728126449636,21.17442069,144.2,144.15,50.0]
[1728126449835,20.0,144.18,144.13,50.0]
[1728126450035,20.0,144.18,144.08,25.49792425]
[1728126450036,6.9386,144.12,144.11,50.0]
[1728126450463,6.9395,144.11,144.09,50.0]
[1728126450772,6.9395,144.11,144.1,50.0]
[1728126451972,6.9395,144.11,144.09,50.0]
[1728126452863,6.9395,144.11,144.1,50.0]
[1728126457062,6.9395,144.11,144.07,12.81170245]
[1728126457376,6.9395,144.11,144.09,50.0]
[1728126459385,6.9395,144.11,144.1,50.0]
[1728126460377,6.9395,144.11,144.07,20.06484359]
[1728126460548,6.9395,144.11,144.1,50.0]
[1728126468971,6.9395,144.11,144.07,20.06484359]
[1728126469182,6.9395,144.11,144.1,50.0]
[1728126469771,17.3452,144.14,144.08,50.0]
[1728126469965,6.9401,144.09,144.08,50.0]
[1728126470271,6.9396,144.1,144.08,50.0]
[1728126470470,6.9401,144.09,144.08,50.0]
[1728126471378,21.17442069,144.13,144.1,50.0]
[1728126471580,6.9391,144.11,144.1,50.0]
[1728126473186,6.9391,144.11,144.09,50.0]
[1728126475468,6.9391,144.11,144.1,50.0]
[1728126480381,6.9388,144.12,144.1,50.0]
[1728126480601,20.0,144.12,144.11,1.38768543]
[1728126480774,6.9368,144.16,144.14,50.0]
[1728126480970,23.5009,144.2,144.1,6.0451]
[1728126480971,6.9363,144.17,144.16,50.0]
[1728126481286,6.9344,144.21,144.18,50.0]
[1728126481486,16.5717,144.22,144.18,50.0]
[1728126481487,6.9348,144.2,144.18,50.0]
[1728126481679,16.5717,144.22,144.18,50.0]
[1728126481882,6.9333,144.23,144.18,12.81170245]
[1728126482084,6.9333,144.23,144.21,50.0]
[1728126483090,6.9339,144.22,144.2,50.0]
[1728126483879,6.9333,144.24,144.21,1.38681107]
[1728126484074,6.9333,144.24,144.21,51.38681107]
[1728126485181,6.9333,144.24,144.22,50.0]